bitfinex-derivatives/quotes_BTCF0:USTF0_20260107
["timestamp","ask_amount","ask_price","bid_price","bid_amount"]
[1767812350863,0.011008,90917.0,90900.0,0.16772846]
[1767812351167,0.104648,90920.0,90906.0,0.0905067]
[1767812351361,0.104648,90920.0,90907.0,0.0905067]
[1767812351362,0.09364,90920.0,90907.0,0.0905067]
[1767812351560,0.09364,90928.0,90909.0,0.16772846]
[1767812351755,0.011005,90947.0,90888.0,0.011012]
[1767812351756,0.09364,90936.0,90913.0,0.0905067]
[1767812351956,0.09364,90936.0,90908.0,0.104649]
[1767812351957,0.09364,90936.0,90915.0,0.0905067]
[1767812352267,0.011006,90933.0,90916.0,0.0905067]
[1767812352453,0.09364,90936.0,90918.0,0.07722176]
[1767812352652,0.011006,90934.0,90921.0,0.16772846]
[1767812352858,0.011006,90934.0,90922.0,0.16772846]
[1767812353459,0.09364,90947.0,90922.0,0.16772846]
[1767812353460,0.09364,90947.0,90923.0,0.0905067]
[1767812353655,0.09364,90957.0,90927.0,0.07722176]
[1767812353860,0.011005,90945.0,90927.0,0.07722176]
[1767812354066,0.09446433,90955.0,90927.0,0.07722176]
[1767812354266,0.011005,90946.0,90927.0,0.07722176]
[1767812354968,0.0936,90947.0,90927.0,0.07722176]
[1767812354969,0.011005,90942.0,90927.0,0.07722176]
[1767812355564,0.0021988,90959.0,90932.0,0.16772846]
[1767812355759,0.011004,90953.0,90934.0,0.16772846]
[1767812355959,0.0021988,90959.0,90936.0,0.16772846]
[1767812356165,0.0021988,90959.0,90937.0,0.16772846]
[1767812356460,0.0021988,90959.0,90940.0,0.0905067]
[1767812357265,0.011004,90955.0,90933.0,0.07722176]
[1767812357472,0.011004,90952.0,90933.0,0.16772846]
[1767812357657,0.09446433,90957.0,90929.0,0.0936]
[1767812358264,0.011004,90950.0,90929.0,0.1841067]
[1767812358458,0.09446433,90952.0,90926.0,0.07722176]
[1767812358664,0.09446433,90944.0,90919.0,0.0936]
[1767812358870,0.011007,90929.0,90913.0,0.0936]
[1767812359369,0.011007,90929.0,90913.0,0.1841067]
[1767812359768,0.011007,90926.0,90913.0,0.1841067]
[1767812359971,0.011007,90931.0,90913.0,0.1841067]
[1767812360163,0.011007,90928.0,90913.0,0.1841067]
[1767812360363,0.011007,90928.0,90913.0,0.16772846]
[1767812360571,0.011007,90928.0,90914.0,0.0905067]
[1767812360858,0.011007,90931.0,90918.0,0.0905067]
[1767812361061,0.0936,90936.0,90919.0,0.0905067]
[1767812361266,0.011006,90932.0,90919.0,0.0905067]
[1767812362159,0.0936,90936.0,90919.0,0.0905067]
[1767812362364,0.011007,90927.0,90919.0,0.0905067]
[1767812362969,0.011007,90924.0,90902.0,0.07722176]
[1767812363175,0.011007,90928.0,90906.0,0.07722176]
[1767812363471,0.0936,90936.0,90908.0,0.08823076]
[1767812363670,0.0936,90942.0,90914.0,0.07722176]
[1767812363871,0.011006,90939.0,90914.0,0.07722176]
[1767812364373,0.0936,90941.0,90919.0,0.07722176]
[1767812364578,0.011006,90937.0,90921.0,0.07722176]
[1767812364763,0.0186507,90941.0,90921.0,0.07722176]
[1767812364966,0.011004,90951.0,90922.0,0.0905067]
[1767812365168,0.011006,90937.0,90924.0,0.0905067]
[1767812365370,0.011006,90937.0,90924.0,0.16772846]
[1767812366070,0.011007,90931.0,90915.0,0.07722176]
[1767812366279,0.011007,90927.0,90915.0,0.16772846]
[1767812366777,0.011007,90930.0,90915.0,0.16772846]
[1767812366978,0.09446433,90940.0,90915.0,0.16772846]
[1767812367167,0.011006,90932.0,90916.0,0.0905067]
[1767812367367,0.011006,90934.0,90917.0,0.16772846]
[1767812367567,0.09356,90942.0,90920.0,0.16772846]
[1767812367879,0.09356,90942.0,90924.0,0.0905067]
[1767812368076,0.011006,90937.0,90924.0,0.0905067]
[1767812368469,0.07587393,90932.0,90903.0,0.01101]
[1767812368772,0.09446433,90937.0,90904.0,0.09356]
[1767812368979,0.011006,90932.0,90917.0,0.0905067]
[1767812370077,0.011007,90930.0,90917.0,0.0905067]
[1767812370469,0.011007,90928.0,90918.0,0.0905067]
[1767812371171,0.011007,90927.0,90918.0,0.0905067]
[1767812371371,0.011007,90930.0,90918.0,0.0905067]
[1767812371571,0.09356,90942.0,90918.0,0.0905067]
[1767812371765,0.011006,90935.0,90919.0,0.011008]
[1767812371971,0.09356,90935.0,90921.0,0.17138972]
[1767812372277,0.104566,90939.0,90924.0,0.0976685]
[1767812372473,0.011006,90937.0,90924.0,0.0976685]
[1767812372872,0.011006,90934.0,90918.0,0.011008]
[1767812373074,0.09321591,90938.0,90916.0,0.011008]
[1767812373272,0.011007,90928.0,90913.0,0.09356]
[1767812373467,0.011007,90928.0,90913.0,0.26494972]
[1767812373779,0.09321591,90938.0,90914.0,0.0976685]
[1767812374278,0.104566,90939.0,90917.0,0.0976685]
[1767812374874,0.011007,90931.0,90917.0,0.0976685]
[1767812375075,0.011007,90931.0,90917.0,0.17138972]
[1767812375281,0.09356,90939.0,90919.0,0.17138972]
[1767812375576,0.011006,90932.0,90920.0,0.17138972]
[1767812376878,0.011006,90935.0,90920.0,0.17138972]
[1767812377078,0.09356,90939.0,90922.0,0.17138972]
[1767812377681,0.09356,90939.0,90927.0,0.0976685]
[1767812378275,0.09356,90949.0,90934.0,0.17138972]
[1767812378470,0.0021988,90959.0,90940.0,0.0246963]
[1767812378672,0.0021988,90959.0,90944.0,0.0976685]
[1767812378982,0.0021988,90959.0,90945.0,0.0976685]
[1767812379284,0.16358971,90971.0,90946.0,0.1086735]
[1767812379484,0.16358971,90971.0,90947.0,0.0976685]
[1767812379679,0.09356,90971.0,90947.0,0.0976685]
[1767812380180,0.011003,90960.0,90947.0,0.0976685]
[1767812381186,0.011002,90970.0,90947.0,0.0976685]
[1767812381383,0.011003,90957.0,90936.0,0.0976685]
[1767812381586,0.011004,90952.0,90936.0,0.0976685]
[1767812381783,0.011004,90950.0,90937.0,0.09356]
[1767812382089,0.011004,90951.0,90937.0,0.09356]
[1767812383085,0.011004,90951.0,90938.0,0.0976685]
[1767812383385,0.011004,90956.0,90939.0,0.0976685]
[1767812383580,0.011004,90954.0,90939.0,0.0976685]
[1767812383780,0.011003,90957.0,90940.0,0.0976685]
[1767812384586,0.09356,90961.0,90940.0,0.0976685]
[1767812384889,0.011004,90955.0,90940.0,0.09546679]
[1767812385090,0.011003,90957.0,90941.0,0.011005]
[1767812385398,0.011004,90955.0,90940.0,0.09546679]
[1767812385792,0.011003,90958.0,90940.0,0.09546679]
[1767812386091,0.011004,90953.0,90938.0,0.09356]
[1767812386279,0.011004,90954.0,90938.0,0.104566]
[1767812386480,0.09356,90961.0,90940.0,0.011005]
[1767812386692,0.09356,90961.0,90942.0,0.0976685]
[1767812387890,0.011004,90950.0,90942.0,0.0976685]
[1767812388094,0.011004,90953.0,90942.0,0.0976685]
[1767812388286,0.011004,90956.0,90942.0,0.0976685]
[1767812388784,0.011003,90959.0,90942.0,0.0976685]
[1767812388985,0.011003,90957.0,90942.0,0.0976685]
[1767812389382,0.09356,90961.0,90942.0,0.0976685]
[1767812389791,0.011004,90955.0,90942.0,0.0976685]
[1767812390194,0.011004,90952.0,90942.0,0.0976685]
[1767812390488,0.011004,90950.0,90942.0,0.0976685]
[1767812390689,0.011004,90953.0,90942.0,0.0976685]
[1767812391892,0.011004,90956.0,90942.0,0.0976685]
[1767812392094,0.011004,90956.0,90942.0,0.12281705]
[1767812392396,0.011004,90955.0,90942.0,0.12281705]
[1767812392784,0.011004,90955.0,90942.0,0.12061607]
[1767812393389,0.09356,90961.0,90942.0,0.02514855]
[1767812393584,0.011004,90954.0,90942.0,0.02514855]
[1767812394295,0.011004,90956.0,90942.0,0.02514855]
[1767812395194,0.011003,90958.0,90942.0,0.02514855]
[1767812395382,0.09356,90961.0,90947.0,0.0976685]
[1767812395587,0.104563,90961.0,90951.0,0.11818756]
[1767812395788,0.011003,90957.0,90944.0,0.0976685]
[1767812396089,0.09356,90961.0,90944.0,0.0976685]
[1767812396292,0.07002971,90957.0,90937.0,0.0976685]
[1767812396595,0.07002971,90956.0,90937.0,0.09356]
[1767812396797,0.011004,90951.0,90937.0,0.09356]
[1767812397292,0.011004,90951.0,90939.0,0.1161547]
[1767812397499,0.011004,90954.0,90941.0,0.0976685]
[1767812398097,0.09356,90961.0,90941.0,0.0976685]
[1767812398797,0.011004,90948.0,90941.0,0.0976685]
[1767812398994,0.08103271,90959.0,90935.0,0.0976685]
[1767812399186,0.011005,90941.0,90927.0,0.0976685]
[1767812399386,0.16358971,90949.0,90927.0,0.0976685]
[1767812399584,0.011005,90942.0,90927.0,0.11535202]
[1767812400201,0.011005,90945.0,90929.0,0.0976685]
[1767812400601,0.011005,90944.0,90899.0,0.0444]
[1767812400789,0.011007,90927.0,90906.0,0.011009]
[1767812401097,0.011007,90925.0,90911.0,0.107769]
[1767812401294,0.011007,90932.0,90907.0,0.09356]
[1767812401691,0.011007,90930.0,90911.0,0.011009]
[1767812401891,0.011007,90929.0,90908.0,0.10999103]
[1767812402090,0.011007,90928.0,90896.0,0.93316]
[1767812402294,0.011007,90928.0,90908.0,0.011009]
[1767812402502,0.09728172,90934.0,90910.0,0.011009]
[1767812402793,0.09356,90939.0,90922.0,0.011008]
[1767812402997,0.09356,90939.0,90910.0,0.16186682]
[1767812402998,0.09356,90947.0,90932.0,0.011006]
[1767812403189,0.09356,90954.0,90936.0,0.10920062]
[1767812403390,0.011004,90951.0,90937.0,0.09819462]
[1767812403590,0.011004,90951.0,90936.0,0.09356]
[1767812403792,0.011004,90954.0,90936.0,0.09356]
[1767812403992,0.011004,90955.0,90937.0,0.09819462]
[1767812404191,0.09356,90962.0,90937.0,0.09819462]
[1767812404389,0.011003,90958.0,90937.0,0.09819462]
[1767812404600,0.19084172,90962.0,90946.0,0.09819462]
[1767812404601,0.09356,90962.0,90946.0,0.09819462]
[1767812405002,0.011004,90955.0,90937.0,0.09819462]
[1767812405304,0.011004,90953.0,90937.0,0.09819462]
[1767812405489,0.011004,90949.0,90938.0,0.09356]
[1767812405691,0.011004,90952.0,90939.0,0.09356]
[1767812405898,0.011004,90952.0,90937.0,0.09356]
[1767812406194,0.16568809,90957.0,90930.0,0.09819462]
[1767812406406,0.011005,90944.0,90930.0,0.09356]
[1767812406704,0.10828572,90949.0,90930.0,0.09356]
[1767812406888,0.104564,90952.0,90931.0,0.011006]
[1767812407197,0.104564,90952.0,90930.0,0.09356]
[1767812407198,0.09356,90952.0,90930.0,0.19175462]
[1767812407402,0.09356,90952.0,90936.0,0.011006]
[1767812407590,0.09356,90952.0,90938.0,0.011006]
[1767812408393,0.09728172,90954.0,90929.0,0.09356]
[1767812408594,0.09728172,90954.0,90929.0,0.19175462]
[1767812408792,0.09728172,90954.0,90929.0,0.09819462]
[1767812408989,0.09728172,90954.0,90931.0,0.09127676]
[1767812409194,0.09356,90959.0,90931.0,0.09127676]
[1767812409492,0.10113893,90948.0,90931.0,0.09356]
[1767812409805,0.011005,90943.0,90931.0,0.09356]
[1767812409995,0.011005,90943.0,90909.0,0.90129234]
[1767812410193,0.011005,90943.0,90904.0,0.01101]
[1767812410396,0.09013393,90942.0,90915.0,0.10996624]
[1767812410594,0.09013393,90942.0,90922.0,0.011008]
[1767812412102,0.011005,90940.0,90921.0,0.09356]
[1767812412304,0.09013393,90942.0,90921.0,0.09356]
[1767812413204,0.15702657,90948.0,90925.0,0.011007]
[1767812413399,0.09356,90948.0,90928.0,0.011007]
[1767812413598,0.09356,90948.0,90925.0,0.09347629]
[1767812413902,0.09356,90948.0,90929.0,0.011007]
[1767812415410,0.09356,90956.0,90938.0,0.011006]
[1767812415802,0.09356,90956.0,90940.0,0.011005]
[1767812416203,0.09356,90956.0,90945.0,0.011005]
[1767812416404,0.09356,90956.0,90940.0,0.09347629]
[1767812416405,0.09356,90956.0,90942.0,0.011005]
[1767812416908,0.09356,90956.0,90940.0,0.09347629]
[1767812417604,0.09356,90964.0,90948.0,0.011004]
[1767812417810,0.09356,90964.0,90940.0,0.09347629]
[1767812418009,0.011003,90962.0,90941.0,0.011005]
[1767812418209,0.011003,90962.0,90943.0,0.011005]
[1767812418503,0.09356,90964.0,90943.0,0.011005]
[1767812418704,0.09356,90964.0,90942.0,0.09356]
[1767812418895,0.09356,90964.0,90948.0,0.011004]
[1767812420711,0.09356,90964.0,90945.0,0.011005]
[1767812420905,0.011003,90963.0,90942.0,0.09356]
[1767812421210,0.09356,90964.0,90944.0,0.011005]
[1767812421510,0.09356,90964.0,90946.0,0.011005]
[1767812421704,0.09356,90968.0,90945.0,0.09347629]
[1767812421909,0.09356,90968.0,90953.0,0.011004]
[1767812422107,0.09013393,90974.0,90948.0,0.09347629]
[1767812422301,0.09356,90973.0,90948.0,0.09347629]
[1767812422498,0.09356,90973.0,90960.0,0.011003]
[1767812422698,0.09356,90973.0,90956.0,0.011003]
[1767812423096,0.09356,90973.0,90958.0,0.011003]
[1767812423909,0.09356,90973.0,90960.0,0.011003]
[1767812424315,0.09356,90973.0,90956.0,0.09347629]
[1767812424509,0.09356,90973.0,90957.0,0.011003]
[1767812425910,0.09356,90973.0,90960.0,0.011003]
[1767812426107,0.09013393,90959.0,90943.0,0.09352]
[1767812426313,0.09013393,90956.0,90936.0,0.09352]
[1767812426611,0.09013393,90949.0,90925.0,0.15445593]
[1767812426800,0.09013393,90947.0,90934.0,0.011006]
[1767812427000,0.09013393,90947.0,90923.0,0.011007]
[1767812427001,0.09013393,90947.0,90938.0,0.011006]
[1767812427204,0.09013393,90948.0,90929.0,0.18699629]
[1767812427410,0.09013393,90948.0,90931.0,0.09347629]
[1767812427915,0.09352,90954.0,90942.0,0.011005]
[1767812428312,0.09352,90962.0,90942.0,0.011005]
[1767812428519,0.09352,90962.0,90939.0,0.09347629]
[1767812428811,0.09352,90962.0,90944.0,0.011005]
[1767812429116,0.09352,90962.0,90941.0,0.011005]
[1767812429510,0.09352,90962.0,90943.0,0.011005]
[1767812430106,0.06346657,90967.0,90947.0,0.011004]
[1767812430302,0.09352,90969.0,90952.0,0.011004]
[1767812430509,0.06346657,90964.0,90945.0,0.011005]
[1767812430710,0.06346657,90964.0,90947.0,0.011005]
[1767812431018,0.09352,90969.0,90944.0,0.09347629]
[1767812431320,0.011,90986.0,90940.0,0.09352]
[1767812431321,0.09352,90977.0,90952.0,0.09347629]
[1767812431506,0.09352,90979.0,90964.0,0.011002]
[1767812431908,0.09352,90979.0,90961.0,0.011003]
[1767812432117,0.24947859,90979.0,90961.0,0.011003]
[1767812432320,0.24947859,90979.0,90963.0,0.011003]
[1767812432515,0.18405351,90979.0,90963.0,0.011003]
[1767812432714,0.18405351,90979.0,90956.0,0.09468209]
[1767812432920,0.18405351,90979.0,90961.0,0.011003]
[1767812433422,0.09053351,90979.0,90956.0,0.09468209]
[1767812434620,0.09053351,90979.0,90961.0,0.011003]
[1767812434817,0.09053351,90979.0,90956.0,0.09468209]
[1767812435017,0.09053351,90979.0,90962.0,0.011003]
[1767812435526,0.15595859,90979.0,90962.0,0.011003]
[1767812435819,0.011,90984.0,90962.0,0.011003]
[1767812436119,0.011001,90980.0,90957.0,0.09468209]
[1767812436323,0.06542508,90968.0,90943.0,0.63404209]
[1767812436521,0.06542508,90966.0,90949.0,0.011004]
[1767812436717,0.06542508,90962.0,90947.0,0.011005]
[1767812436916,0.15595859,90960.0,90943.0,0.09352]
[1767812437216,0.09352,90969.0,90943.0,0.09352]
[1767812437217,0.06542508,90955.0,90943.0,0.09352]
[1767812437528,0.09053351,90956.0,90943.0,0.09352]
[1767812437725,0.06542508,90955.0,90943.0,0.09352]
[1767812438220,0.06542508,90953.0,90939.0,0.09352]
[1767812438418,0.06542508,90951.0,90933.0,0.09352]
[1767812438622,0.15595859,90949.0,90933.0,0.09352]
[1767812438825,0.09053351,90949.0,90933.0,0.09352]
[1767812439119,0.09053351,90957.0,90936.0,0.011006]
[1767812439311,0.09352,90961.0,90936.0,0.09468209]
[1767812439511,0.09352,90962.0,90936.0,0.09468209]
[1767812439926,0.16994808,90962.0,90940.0,0.011005]
[1767812440225,0.15595859,90956.0,90933.0,0.104526]
[1767812440422,0.07642908,90955.0,90933.0,0.104526]
[1767812440830,0.07642908,90955.0,90933.0,0.011006]
[1767812441019,0.09053351,90956.0,90937.0,0.011006]
[1767812441221,0.09053351,90956.0,90939.0,0.011005]
[1767812442427,0.09053351,90956.0,90935.0,0.011006]
[1767812442732,0.06542508,90953.0,90935.0,0.011006]
[1767812442930,0.15595859,90952.0,90935.0,0.011006]
[1767812443331,0.15595859,90949.0,90933.0,0.09352]
[1767812444131,0.09352,90962.0,90934.0,0.09352]
[1767812444132,0.06542508,90945.0,90934.0,0.09352]
[1767812444316,0.06542508,90951.0,90935.0,0.09352]
[1767812444723,0.09053351,90960.0,90942.0,0.011005]
[1767812444924,0.09053351,90960.0,90940.0,0.011005]
[1767812445235,0.15595859,90960.0,90942.0,0.011005]
[1767812445526,0.15595859,90960.0,90944.0,0.011005]
[1767812445832,0.06542508,90957.0,90939.0,0.011005]
[1767812446624,0.09352,90962.0,90937.0,0.09468209]
[1767812446826,0.09352,90962.0,90946.0,0.011005]
[1767812449040,0.09352,90962.0,90948.0,0.011004]
[1767812449228,0.09352,90962.0,90950.0,0.011004]
[1767812449541,0.0021988,90959.0,90950.0,0.011004]
[1767812449743,0.0021988,90959.0,90949.0,0.011004]
[1767812450545,0.0021988,90959.0,90951.0,0.011004]
[1767812451038,0.0021988,90959.0,90941.0,0.011005]
[1767812451247,0.06542508,90953.0,90938.0,0.09352]
[1767812451934,0.07642908,90953.0,90938.0,0.09352]
[1767812452134,0.06542508,90951.0,90938.0,0.09352]
[1767812452352,0.0021988,90959.0,90927.0,0.09468209]
[1767812452353,0.15595859,90949.0,90927.0,0.09468209]
[1767812452638,0.06542508,90942.0,90928.0,0.09352]
[1767812452833,0.06542508,90942.0,90929.0,0.09352]
[1767812453054,0.06542508,90942.0,90928.0,0.09352]
[1767812453255,0.07643008,90942.0,90928.0,0.09352]
[1767812453448,0.06542508,90942.0,90922.0,0.011008]
[1767812453655,0.06542508,90946.0,90927.0,0.09352]
[1767812453855,0.07643008,90943.0,90927.0,0.09352]
[1767812454062,0.06542508,90943.0,90927.0,0.09352]
[1767812454558,0.09053351,90952.0,90932.0,0.011006]
[1767812454854,0.10153751,90952.0,90930.0,0.09468209]
[1767812455059,0.09053351,90952.0,90933.0,0.011006]
[1767812455260,0.16994908,90956.0,90936.0,0.011006]
[1767812455458,0.09273231,90959.0,90933.0,0.09468209]
[1767812455759,0.15595859,90956.0,90933.0,0.09468209]
[1767812456061,0.06542508,90953.0,90934.0,0.011006]
[1767812456260,0.15595859,90952.0,90931.0,0.011006]
[1767812456457,0.15595859,90952.0,90927.0,0.18820209]
[1767812456458,0.06542508,90947.0,90932.0,0.09352]
[1767812456657,0.06542508,90947.0,90934.0,0.011006]
[1767812456857,0.07642908,90956.0,90936.0,0.011006]
[1767812457156,0.06542508,90956.0,90938.0,0.011006]
[1767812457359,0.06542508,90955.0,90942.0,0.011005]
[1767812457553,0.09053351,90956.0,90934.0,0.011006]
[1767812457753,0.09053351,90956.0,90945.0,0.011005]
[1767812457955,0.09053351,90956.0,90934.0,0.011006]
[1767812458258,0.09053351,90956.0,90941.0,0.011005]
[1767812460155,0.15595859,90956.0,90938.0,0.011006]
[1767812460351,0.06542508,90942.0,90928.0,0.011007]
[1767812460551,0.06542508,90942.0,90928.0,0.104527]
[1767812460762,0.15595859,90940.0,90922.0,0.09352]
[1767812461064,0.06542508,90937.0,90925.0,0.011007]
[1767812461260,0.1502781,90946.0,90922.0,0.09352]
[1767812461457,0.0567581,90945.0,90929.0,0.011007]
[1767812461657,0.0567581,90944.0,90926.0,0.011007]
[1767812462354,0.15137403,90944.0,90919.0,0.09762575]
[1767812462658,0.05959581,90941.0,90920.0,0.09352]
[1767812462857,0.05959581,90928.0,90914.0,0.09352]
[1767812463062,0.05959581,90926.0,90914.0,0.011009]
[1767812463361,0.05959581,90933.0,90917.0,0.011008]
[1767812463658,0.09352,90934.0,90908.0,0.1073146]
[1767812463859,0.09352,90934.0,90919.0,0.011008]
[1767812464364,0.05959581,90939.0,90916.0,0.0963056]
[1767812464565,0.05959581,90932.0,90917.0,0.09356]
[1767812464768,0.05959581,90932.0,90912.0,0.09356]
[1767812465060,0.15421174,90954.0,90936.0,0.011006]
[1767812465259,0.15421174,90954.0,90933.0,0.011006]
[1767812465260,0.24777174,90954.0,90933.0,0.011006]
[1767812465456,0.05959581,90952.0,90935.0,0.011006]
[1767812465763,0.05959581,90950.0,90935.0,0.011006]
[1767812466963,0.05959581,90950.0,90927.0,0.0963056]
[1767812467161,0.05959581,90950.0,90935.0,0.011006]
[1767812468361,0.05959581,90950.0,90927.0,0.0963056]
[1767812468561,0.05959581,90950.0,90929.0,0.011007]
[1767812468752,0.15421174,90950.0,90929.0,0.011007]
[1767812469562,0.05959581,90948.0,90929.0,0.011007]
[1767812470262,0.07060081,90946.0,90926.0,0.09356]
[1767812470564,0.15421174,90929.0,90914.0,0.09356]
[1767812470863,0.09461593,90945.0,90919.0,0.20627002]
[1767812471067,0.05959581,90944.0,90919.0,0.20627002]
[1767812471261,0.05959581,90942.0,90919.0,0.0963056]
[1767812471466,0.05959581,90942.0,90927.0,0.011007]
[1767812471662,0.05959581,90942.0,90926.0,0.09356]
[1767812473268,0.05959581,90939.0,90912.0,0.0963056]
[1767812473458,0.15421174,90939.0,90923.0,0.011007]
[1767812473658,0.15421174,90939.0,90927.0,0.011007]
[1767812473861,0.15421174,90939.0,90925.0,0.09356]
[1767812474069,0.05959581,90945.0,90926.0,0.011007]
[1767812474262,0.09356,90949.0,90933.0,0.011006]
[1767812474457,0.05959581,90949.0,90930.0,0.011007]
[1767812474655,0.05959581,90949.0,90932.0,0.011006]
[1767812474866,0.05959581,90948.0,90932.0,0.011006]
[1767812475366,0.05959581,90948.0,90929.0,0.011007]
[1767812475555,0.05959581,90947.0,90929.0,0.011007]
[1767812475759,0.05959581,90947.0,90931.0,0.011006]
[1767812475968,0.05959581,90947.0,90928.0,0.011007]
[1767812477060,0.05959581,90947.0,90930.0,0.011007]
[1767812478064,0.05959581,90947.0,90934.0,0.011006]
[1767812478470,0.05959581,90947.0,90931.0,0.011006]
[1767812478976,0.05959581,90947.0,90928.0,0.011007]
[1767812479362,0.15421174,90947.0,90928.0,0.011007]
[1767812479668,0.05959581,90928.0,90919.0,0.03540739]
[1767812479867,0.05959581,90928.0,90917.0,0.104568]
[1767812480370,0.09461593,90929.0,90917.0,0.104568]
[1767812480569,0.05959581,90939.0,90921.0,0.011008]
[1767812480971,0.09461593,90943.0,90918.0,0.0963056]
[1767812481174,0.09461593,90943.0,90919.0,0.0963056]
[1767812481364,0.24777174,90950.0,90925.0,0.0963056]
[1767812481565,0.09356,90950.0,90932.0,0.011006]
[1767812481767,0.24777174,90950.0,90931.0,0.011006]
[1767812482072,0.24777174,90950.0,90929.0,0.0963056]
[1767812482258,0.24777174,90950.0,90931.0,0.011007]
[1767812482462,0.09461593,90950.0,90929.0,0.0963056]
[1767812482671,0.18817593,90957.0,90940.0,0.011005]
[1767812482873,0.0021988,90959.0,90942.0,0.011005]
[1767812483376,0.0021988,90959.0,90945.0,0.011005]
[1767812483778,0.0021988,90959.0,90942.0,0.011005]
[1767812483972,0.0021988,90959.0,90944.0,0.011005]
[1767812484273,0.0021988,90959.0,90941.0,0.0963056]
[1767812484468,0.0021988,90959.0,90950.0,0.011004]
[1767812485277,0.09356,90970.0,90954.0,0.011004]
[1767812485578,0.05959581,90974.0,90956.0,0.011003]
[1767812486367,0.05959581,90974.0,90952.0,0.104564]
[1767812486570,0.05959581,90974.0,90954.0,0.011004]
[1767812486970,0.18817593,90977.0,90954.0,0.0963056]
[1767812487167,0.18817593,90977.0,90960.0,0.011003]
[1767812487368,0.15421174,90975.0,90956.0,0.011003]
[1767812487677,0.15421174,90981.0,90955.0,0.0963056]
[1767812487877,0.09356,90984.0,90958.0,0.0963056]
[1767812488071,0.09356,90984.0,90964.0,0.0963056]
[1767812488273,0.09356,90984.0,90974.0,0.011001]
[1767812488669,0.09356,90984.0,90971.0,0.011002]
[1767812488869,0.09356,90984.0,90967.0,0.011002]
[1767812489177,0.05959581,90987.0,90964.0,0.0963056]
[1767812489378,0.05959581,90987.0,90972.0,0.011002]
[1767812490083,0.09461593,90988.0,90972.0,0.011002]
[1767812490277,0.05959581,90992.0,90975.0,0.011001]
[1767812490979,0.796,91005.0,90971.0,0.09352]
[1767812490980,0.05959581,90999.0,90979.0,0.011001]
[1767812491781,0.15421174,90999.0,90979.0,0.011001]
[1767812491984,0.15142119,90998.0,90974.0,0.09762685]
[1767812492982,0.15142119,90993.0,90971.0,0.09352]
[1767812493183,0.15142119,90993.0,90977.0,0.011001]
[1767812493382,0.15142119,90993.0,90971.0,0.09352]
[1767812493680,0.15142119,90982.0,90967.0,0.09352]
[1767812493985,0.09739941,90982.0,90967.0,0.09352]
[1767812494173,0.06502178,90988.0,90967.0,0.09352]
[1767812494681,0.011,90988.0,90967.0,0.09352]
[1767812494872,0.011,90988.0,90967.0,0.18708743]
[1767812495078,0.011,90989.0,90968.0,0.09356743]
[1767812495284,0.09352,90991.0,90968.0,0.11598898]
[1767812495473,0.011,90989.0,90968.0,0.09356743]
[1767812495976,0.011,90989.0,90968.0,0.11536832]
[1767812496176,0.011,90989.0,90968.0,0.09356743]
[1767812496874,0.010999,90993.0,90972.0,0.11461672]
[1767812497882,0.09352,90995.0,90972.0,0.11461672]
[1767812498081,0.05402178,90994.0,90967.0,0.09352]
[1767812498283,0.09352,90995.0,90973.0,0.011001]
[1767812498587,0.010998,90999.0,90978.0,0.09356743]
[1767812498780,0.05402178,90998.0,90978.0,0.09352]
[1767812498987,0.15142119,90995.0,90978.0,0.09352]
[1767812499386,0.010999,90992.0,90978.0,0.09352]
[1767812499689,0.010999,90991.0,90978.0,0.09352]
[1767812500090,0.011,90988.0,90978.0,0.09352]
[1767812500489,0.010999,90991.0,90978.0,0.09352]
[1767812501393,0.05402178,90998.0,90978.0,0.09352]
[1767812501578,0.15142119,90997.0,90978.0,0.09352]
[1767812502382,0.15142119,90994.0,90978.0,0.09352]
[1767812502799,0.010999,90993.0,90978.0,0.09352]
[1767812503092,0.14754178,91005.0,90983.0,0.09356743]
[1767812503288,0.05402178,90999.0,90979.0,0.1099052]
[1767812503483,0.15142119,90996.0,90978.0,0.09352]
[1767812504491,0.09739941,91003.0,90981.0,0.09356743]
[1767812504795,0.09739941,91003.0,90985.0,0.011]
[1767812505185,0.15142119,91003.0,90982.0,0.011]
[1767812505585,0.05402178,90998.0,90979.0,0.011001]
[1767812505882,0.05402178,90998.0,90978.0,0.09352]
[1767812506484,0.09739941,90999.0,90982.0,0.011]
[1767812506685,0.14754178,91004.0,90982.0,0.011]
[1767812507082,0.15853978,91004.0,90982.0,0.011]
[1767812507282,0.14754178,91004.0,90984.0,0.011]
[1767812507891,0.09352,91012.0,90999.0,0.010998]
[1767812508083,0.09352,91012.0,90978.0,0.09352]
[1767812508084,0.09352,91012.0,90996.0,0.010999]
[1767812508291,0.09352,91012.0,90995.0,0.010999]
[1767812508497,0.09352,91012.0,90989.0,0.09356743]
[1767812508691,0.09352,91012.0,90993.0,0.010999]
[1767812508890,0.09352,91012.0,90990.0,0.010999]
[1767812509092,0.09352,91012.0,90988.0,0.09352]
[1767812509286,0.010998,91004.0,90988.0,0.09352]
[1767812509491,0.010998,91002.0,90988.0,0.09352]
[1767812509699,0.010998,91005.0,90988.0,0.09352]
[1767812509895,0.06501978,91005.0,90984.0,0.011]
[1767812510099,0.06501978,91005.0,90987.0,0.09352]
[1767812510298,0.05402178,90997.0,90981.0,0.011]
[1767812510500,0.05402178,90997.0,90985.0,0.10452]
[1767812510803,0.05402178,91002.0,90985.0,0.10452]
[1767812511503,0.05402178,91002.0,90987.0,0.011]
[1767812511701,0.010997,91009.0,90991.0,0.010999]
[1767812511896,0.05402178,91000.0,90985.0,0.09352]
[1767812513200,0.104517,91012.0,90978.0,0.011001]
[1767812513201,0.06502078,90995.0,90978.0,0.011001]
[1767812513395,0.05402178,90995.0,90980.0,0.104481]
[1767812514105,0.05402178,90995.0,90981.0,0.011]
[1767812514504,0.09739941,90998.0,90985.0,0.011]
[1767812515100,0.09739941,90998.0,90982.0,0.011]
[1767812515297,0.05402178,91000.0,90980.0,0.09348]
[1767812515602,0.09348,91001.0,90984.0,0.09356743]
[1767812516193,0.09348,91001.0,90984.0,0.10456743]
[1767812516599,0.010998,90999.0,90980.0,0.09348]
[1767812516806,0.06501978,90999.0,90981.0,0.011]
[1767812517805,0.05402178,90999.0,90983.0,0.011]